bitfinex/quotes_SOLUSD_20220130
["timestamp","ask_amount","ask_price","bid_price","bid_amount"]
[1643537969753,2.95669142,95.827,95.69,6.0]
[1643537969754,2.95669142,95.827,95.691,104.4]
[1643537969960,0.25,95.826,95.693,18.94740694]
[1643537970156,0.25,95.826,95.693,20.96341047]
[1643537970354,2.95669142,95.826,95.694,18.69740694]
[1643537970554,2.95669142,95.826,95.694,49.65231356]
[1643537970753,0.65,95.828,95.694,49.65231356]
[1643537970754,0.25,95.825,95.695,31.20490662]
[1643537970958,0.25,95.825,95.695,49.90231356]
[1643537971156,0.25,95.825,95.705,6.0]
[1643537971354,0.4,95.828,95.706,0.25]
[1643537971557,0.4,95.828,95.706,6.25]
[1643537971956,0.4,95.828,95.71,6.0]
[1643537972153,0.4,95.828,95.716,6.0]
[1643537972355,0.4,95.828,95.717,0.25]
[1643537972582,0.4,95.828,95.72,15.11]
[1643537972756,0.65,95.828,95.72,15.11]
[1643537972956,0.65,95.828,95.73,6.0]
[1643537973360,105.05,95.828,95.73,6.0]
[1643537973560,0.4,95.827,95.7,6.0]
[1643537973758,0.4,95.828,95.71,15.11]
[1643537974163,0.4,95.879,95.72,194.84]
[1643537974363,15.11,95.9,95.73,15.11]
[1643537974561,0.4,95.899,95.74,6.0]
[1643537974762,0.4,95.899,95.75,15.11]
[1643537974961,40.24760449,95.899,95.75,15.11]
[1643537975165,0.4,95.898,95.76,6.0]
[1643537975363,0.4,95.898,95.77,15.11]
[1643537975561,13.014487,95.897,95.78,6.0]
[1643537975762,0.4,95.896,95.781,0.25]
[1643537975964,104.4,95.894,95.761,0.25]
[1643537976172,15.11,95.88,95.719,535.10167007]
[1643537976362,36.60024358,95.879,95.733,0.25]
[1643537976562,0.4,95.878,95.733,0.25]
[1643537976765,12.54,95.87,95.733,104.65]
[1643537977063,12.54,95.87,95.734,2.01600353]
[1643537977064,0.2,95.869,95.734,2.01600353]
[1643537977263,0.65,95.869,95.743,6.0]
[1643537977465,0.25,95.869,95.75,12.54]
[1643537977963,0.4,95.919,95.76,6.0]
[1643537978167,0.4,95.919,95.77,12.54]
[1643537978362,46.13072843,95.918,95.771,0.25]
[1643537978564,0.4,95.917,95.78,6.0]
[1643537978767,0.65,95.917,95.79,12.54]
[1643537979162,0.65,95.917,95.8,6.0]
[1643537979363,0.4,95.917,95.81,12.54]
[1643537979563,2.95669142,95.935,95.821,62.57]
[1643537979763,2.95669142,95.949,95.82,18.54]
[1643537979962,2.95669142,95.948,95.822,0.25]
[1643537980191,41.62724807,95.947,95.822,104.65]
[1643537980392,0.4,95.946,95.83,6.0]
[1643537980592,17.19015205,95.966,95.84,12.54]
[1643537980593,0.4,95.965,95.84,12.54]
[1643537980793,0.4,95.965,95.841,0.25]
[1643537980995,2.95669142,95.982,95.85,6.0]
[1643537981194,2.95669142,95.982,95.86,12.54]
[1643537981400,63.30214126,95.981,95.861,0.25]
[1643537981694,19.467822,95.98,95.87,6.0]
[1643537981895,0.4,95.979,95.84,12.54]
[1643537982095,20.54684347,95.979,95.85,6.0]
[1643537982294,20.54684347,95.979,95.834,6.0]
[1643537982295,0.3219983,95.965,95.834,6.0]
[1643537982494,12.54,95.96,95.834,6.0]
[1643537982695,33.91278155,95.959,95.835,0.25]
[1643537982894,0.4,95.958,95.835,0.25]
[1643537983293,3.35669142,95.958,95.835,0.25]
[1643537983495,54.69789047,95.957,95.8,12.54]
[1643537983695,0.32375737,95.952,95.823,24.0088]
[1643537983894,104.4,95.939,95.823,24.0088]
[1643537984099,72.32419195,95.938,95.76,12.54]
[1643537984294,0.4,95.937,95.766,72.2655]
[1643537984597,17.59015205,95.937,95.766,72.2655]
[1643537984794,20.79684347,95.936,95.766,72.2655]
[1643537984995,0.30570705,95.921,95.766,72.2655]
[1643537985294,34.05794719,95.909,95.766,72.2655]
[1643537985497,0.4,95.908,95.766,72.2655]
[1643537985694,0.65,95.908,95.766,72.2655]
[1643537986096,0.65,95.908,95.776,68.57]
[1643537986296,0.65,95.908,95.777,0.25]
[1643537986699,0.65,95.908,95.78,6.0]
[1643537986898,0.65,95.908,95.782,104.4]
[1643537987098,0.65,95.908,95.792,6.0]
[1643537987300,105.05,95.908,95.793,0.25]
[1643537987499,0.4,95.907,95.793,0.25]
[1643537987798,0.65,95.908,95.793,0.25]
[1643537988000,105.05,95.908,95.793,0.25]
[1643537988201,0.4,95.907,95.793,0.25]
[1643537988699,0.65,95.908,95.791,0.25]
[1643537988902,0.65,95.908,95.793,6.0]
[1643537989403,0.65,95.908,95.794,0.25]
[1643537989600,0.65,95.908,95.8,6.0]
[1643537989901,0.65,95.908,95.801,0.25]
[1643537991503,0.4,95.908,95.801,0.25]
[1643537991911,0.4,95.929,95.802,2.01816725]
[1643537992103,0.4,95.939,95.812,6.0]
[1643537992311,12.54,95.94,95.813,0.25]
[1643537992505,0.4,95.939,95.813,6.25]
[1643537992907,0.4,95.939,95.82,12.54]
[1643537993106,12.54,95.94,95.813,6.25]
[1643537993306,2.95669142,95.938,95.813,6.25]
[1643537993606,0.4,95.938,95.813,6.25]
[1643537993806,34.52200225,95.938,95.813,6.25]
[1643537994007,104.8,95.937,95.813,6.25]
[1643537994206,0.4,95.936,95.813,6.25]
[1643537994410,0.4,95.936,95.82,12.54]
[1643537994610,0.4,95.959,95.831,62.57]
[1643537994807,0.4,95.979,95.841,104.4]
[1643537995009,0.4,95.988,95.851,6.0]
[1643537995208,2.28391894,95.987,95.851,6.0]
[1643537995410,2.28391894,95.987,95.852,6.25]
[1643537995608,0.4,95.987,95.853,166.97]
[1643537995807,0.4,95.987,95.854,0.25]
[1643537995808,0.65,95.987,95.854,0.25]
[1643537996007,0.65,95.987,95.863,6.0]
[1643537996208,13.007714,95.986,95.863,6.0]
[1643537996409,0.65,95.985,95.864,0.25]
[1643537996610,13.017218,95.984,95.864,0.25]
[1643537996809,0.65,95.983,95.864,0.25]
[1643537997113,0.65,95.983,95.871,104.4]
[1643537997309,13.018575,95.982,95.871,104.4]
[1643537997608,0.4,95.981,95.881,6.0]
[1643537997809,13.018575,95.98,95.881,6.0]
[1643537998010,0.4,95.979,95.87,6.0]
[1643537998208,13.018575,95.978,95.87,6.0]
[1643537998410,0.65,95.977,95.873,6.0]
[1643537998840,12.942443,95.976,95.874,0.25]
[1643537999014,0.4,95.975,95.874,0.25]
[1643537999310,45.26184007,95.973,95.874,0.25]
[1643537999510,0.4,95.972,95.874,0.25]
[1643537999713,13.669931,95.972,95.874,0.25]
[1643537999908,13.669931,95.972,95.87,6.0]
[1643537999909,0.4,95.971,95.87,6.0]
[1643538000115,104.4,95.97,95.87,6.0]
[1643538000309,19.114504,95.969,95.864,6.0]
[1643538000509,0.25,95.969,95.864,6.0]
[1643538000909,0.25,95.969,95.865,6.0]
[1643538001109,0.25,95.969,95.865,6.1]
[1643538001310,0.25,95.969,95.865,6.0]
[1643538001511,0.25,95.972,95.865,6.0]
[1643538001711,0.25,95.972,95.866,0.25]
[1643538001912,0.25,95.988,95.866,0.25]
[1643538002111,0.25,95.988,95.866,6.25]
[1643538002317,0.25,95.988,95.866,6.35]
[1643538002513,0.25,95.988,95.866,6.25]
[1643538002717,42.44637845,95.988,95.866,6.25]
[1643538003113,42.44637845,95.988,95.867,104.4]
[1643538003316,42.44637845,95.988,95.868,0.35]
[1643538003515,42.44637845,95.988,95.878,104.4]
[1643538003718,42.44637845,95.988,95.879,0.1]
[1643538004018,0.31284092,95.984,95.857,0.1]
[1643538004217,12.54,95.97,95.843,0.1]
[1643538004416,35.17564011,95.968,95.843,0.35]
[1643538004821,0.25,95.967,95.843,0.35]
[1643538005615,0.35,95.967,95.843,0.35]
[1643538006216,104.4,95.965,95.843,0.35]
[1643538006416,104.4,95.963,95.843,0.35]
[1643538006616,58.306381,95.962,95.843,0.35]
[1643538006818,0.1,95.961,95.843,0.35]
[1643538007016,58.306381,95.961,95.843,0.35]
[1643538007218,45.295,95.96,95.843,0.35]
[1643538007422,0.1,95.959,95.843,0.35]
[1643538007620,0.35,95.959,95.843,0.35]
[1643538007823,0.25,95.959,95.843,0.35]
[1643538008823,0.35,95.962,95.843,0.35]
[1643538009023,2.28800493,95.961,95.843,0.35]
[1643538009623,0.1,95.962,95.843,0.35]
[1643538010028,0.1,95.962,95.852,6.0]
[1643538010424,0.1,95.962,95.853,0.25]
[1643538010825,0.35,95.962,95.853,0.25]
[1643538011024,0.1,95.962,95.855,6.0]
[1643538011325,0.1,95.962,95.853,0.35]
[1643538011525,0.1,95.962,95.855,6.0]
[1643538011925,12.54,95.96,95.846,0.35]
[1643538012126,41.908085,95.959,95.846,0.1]
[1643538012326,43.561127,95.958,95.846,0.1]
[1643538012528,0.30153447,95.942,95.843,0.1]
[1643538012725,12.54,95.93,95.843,0.1]
[1643538012926,85.73046523,95.929,95.843,0.1]
[1643538013126,43.561127,95.928,95.843,0.1]
[1643538013324,0.35,95.927,95.843,0.1]
[1643538013624,0.25,95.927,95.843,0.1]
[1643538014251,43.461127,95.926,95.843,0.1]
[1643538014454,0.31781504,95.916,95.843,0.1]
[1643538014654,12.54,95.91,95.814,0.1]
[1643538014851,12.54,95.91,95.79,440.25586237]
[1643538014852,133.941294,95.909,95.791,0.1]
[1643538015057,16.27585,95.908,95.791,0.1]
[1643538015254,16.27585,95.907,95.791,0.1]
[1643538015453,16.27585,95.906,95.791,0.1]
[1643538015752,16.27585,95.906,95.791,0.45]
[1643538015753,0.2,95.905,95.791,0.45]
[1643538015954,104.4,95.904,95.791,0.45]
[1643538016157,12.54,95.9,95.791,0.45]
[1643538016353,12.54,95.9,95.791,0.2]
[1643538016354,104.4,95.898,95.791,0.2]
[1643538016553,0.2,95.897,95.791,0.2]
[1643538016754,0.45,95.897,95.791,0.2]
[1643538016956,2.28946871,95.896,95.791,0.2]
[1643538017154,0.31716738,95.889,95.791,0.2]
[1643538017354,0.31251874,95.864,95.791,0.2]
[1643538017561,0.30341945,95.832,95.791,0.1]
[1643538017855,0.30758336,95.821,95.686,48.2239]
[1643538018057,56.172953,95.82,95.686,48.2239]
[1643538018257,79.4238,95.819,95.687,3.48348502]
[1643538018456,79.6738,95.819,95.686,48.2239]
[1643538018656,79.6738,95.819,95.69,12.54]
[1643538018855,79.6738,95.819,95.696,6.0]
[1643538019056,0.25,95.819,95.701,110.4]
[1643538019658,0.25,95.819,95.707,6.0]
[1643538020255,0.25,95.819,95.708,0.25]
[1643538020658,0.25,95.819,95.696,6.0]
[1643538020858,0.25,95.819,95.697,0.25]
[1643538021056,0.25,95.819,95.697,2.30377866]
[1643538021255,0.25,95.819,95.697,0.25]
[1643538022561,0.25,95.819,95.697,6.25]
[1643538022761,0.25,95.819,95.697,6.0]
[1643538022958,0.25,95.819,95.698,0.25]
[1643538023559,104.65,95.819,95.698,0.25]
[1643538023759,19.595213,95.818,95.698,0.25]
[1643538023962,47.906116,95.818,95.698,0.25]
[1643538024259,0.25,95.817,95.687,0.45]
[1643538024460,104.4,95.816,95.687,0.45]
[1643538024661,108.62154685,95.816,95.687,0.45]
[1643538024859,0.25,95.815,95.687,0.45]
[1643538025062,12.54,95.8,95.687,0.45]
[1643538025260,104.4,95.798,95.687,0.45]
[1643538025661,0.25,95.797,95.687,0.45]
[1643538026663,18.7688965,95.797,95.687,0.45]
[1643538026861,104.4,95.796,95.687,0.45]
[1643538027262,0.25,95.795,95.687,0.45]
[1643538028062,15.68,95.79,95.687,0.45]
[1643538028264,12.54,95.78,95.687,0.45]
[1643538028462,40.71619322,95.779,95.687,0.45]
[1643538028664,34.559316,95.778,95.687,0.45]
[1643538028863,104.65,95.777,95.687,0.45]
[1643538029064,104.65,95.777,95.64,12.54]
[1643538029270,0.30996269,95.73,95.633,199.00455118]
[1643538029467,2.43469855,95.575,95.523,4.31523792]
[1643538029665,2.43469855,95.575,95.516,78.5112]
[1643538029666,2.43469855,95.575,95.484,119.2776]
[1643538029869,2.43469855,95.575,95.524,20.57105293]
[1643538030066,9.855e-05,95.574,95.524,20.57105293]
[1643538030272,9.855e-05,95.573,95.541,104.4]
[1643538030467,9.855e-05,95.572,95.524,20.57105293]
[1643538030666,9.855e-05,95.571,95.551,6.0]
[1643538030868,9.855e-05,95.57,95.544,0.608]
[1643538031068,9.855e-05,95.569,95.544,0.608]
[1643538031267,19.791,95.656,95.569,0.01990145]
[1643538031571,19.791,95.656,95.555,6.0]
[1643538031769,0.25,95.655,95.555,6.0]
[1643538031967,0.25,95.655,95.55,12.54]
[1643538031968,42.77738576,95.655,95.56,6.0]
[1643538032369,42.77738576,95.655,95.544,21.17474684]
[1643538034274,42.77738576,95.655,95.545,0.2]
[1643538034275,2.95669142,95.654,95.545,0.2]
[1643538034476,42.77738576,95.655,95.545,0.2]
[1643538034676,0.25,95.653,95.554,6.0]
[1643538034875,12.54,95.65,95.554,6.0]
[1643538035278,0.25,95.649,95.554,6.0]
[1643538036274,0.25,95.649,95.555,0.25]
[1643538036676,0.25,95.649,95.555,6.25]
[1643538036874,12.54,95.65,95.555,6.25]
[1643538037077,15.691,95.73,95.556,68.57]
[1643538037276,12.54,95.68,95.557,0.25]
[1643538037477,12.54,95.71,95.565,6.0]
[1643538037679,12.54,95.71,95.566,23.5401]
[1643538037881,12.54,95.71,95.57,6.0]
[1643538037882,41.58422146,95.709,95.57,6.0]
[1643538038078,41.58422146,95.709,95.567,104.65]
[1643538038079,41.58422146,95.709,95.577,6.0]
[1643538038279,41.58422146,95.709,95.578,0.25]
[1643538038885,2.95669142,95.708,95.578,23.8179]
[1643538039085,41.58422146,95.709,95.588,6.0]
[1643538039286,0.25,95.708,95.589,0.25]
[1643538039886,0.25,95.708,95.589,62.82]
[1643538040106,0.25,95.708,95.589,68.57]
[1643538040307,0.25,95.709,95.589,68.57]
[1643538040705,0.25,95.709,95.59,0.608]
[1643538040907,12.54,95.71,95.59,0.608]
[1643538041110,39.07531067,95.709,95.59,0.608]
[1643538041308,39.07531067,95.709,95.59,0.858]
[1643538041511,39.07531067,95.709,95.599,6.0]
[1643538041711,39.07531067,95.709,95.6,104.4]
[1643538041909,39.07531067,95.709,95.6,104.65]
[1643538042110,39.07531067,95.709,95.611,104.4]
[1643538042310,0.25,95.708,95.612,0.25]
[1643538042511,0.25,95.708,95.621,6.0]
[1643538042912,0.25,95.708,95.622,0.25]
[1643538043310,0.25,95.709,95.622,0.25]
[1643538043811,0.25,95.709,95.623,0.608]
[1643538044212,12.54,95.73,95.623,105.008]
[1643538044412,12.54,95.73,95.624,0.25]
[1643538044614,12.54,95.73,95.634,104.4]
[1643538044814,12.54,95.73,95.635,0.25]
[1643538045013,43.58066228,95.729,95.644,6.0]
[1643538045412,0.25,95.728,95.645,0.25]
[1643538047019,0.25,95.728,95.646,0.608]
[1643538047218,2.95669142,95.727,95.646,0.608]
[1643538047419,0.25,95.726,95.646,0.608]
[1643538048620,0.25,95.729,95.646,0.608]
[1643538048820,34.03430062,95.729,95.646,0.608]
[1643538049020,36.99099204,95.729,95.646,0.608]
[1643538049422,21.79471521,95.728,95.646,0.608]
[1643538049723,18.83802379,95.727,95.646,0.608]
[1643538049923,22.04471521,95.727,95.646,0.608]
[1643538050221,22.04471521,95.727,95.623,6.0]
[1643538050222,2.95669142,95.726,95.624,0.25]
[1643538050424,0.25,95.725,95.624,0.858]
[1643538050623,12.54,95.71,95.624,6.858]
[1643538050824,46.06250629,95.709,95.624,6.858]
[1643538051023,45.81250629,95.709,95.624,6.858]
[1643538051224,45.81250629,95.709,95.624,111.258]
[1643538051424,45.81250629,95.709,95.624,0.858]
[1643538052424,0.25,95.708,95.624,105.258]
[1643538052624,0.25,95.708,95.634,6.0]
[1643538052824,0.25,95.708,95.635,0.25]
[1643538053023,0.25,95.708,95.624,0.608]
[1643538053226,2.95669142,95.707,95.624,0.608]
[1643538053429,2.95669142,95.707,95.635,0.608]
[1643538053624,0.25,95.706,95.635,0.608]
[1643538054624,0.25,95.708,95.635,0.608]
[1643538056529,0.25,95.708,95.624,0.858]
[1643538056727,0.25,95.708,95.624,105.258]
[1643538057126,0.25,95.708,95.634,6.0]
[1643538057528,0.25,95.708,95.624,0.858]
[1643538058027,0.25,95.708,95.624,6.858]
[1643538058228,0.25,95.708,95.624,6.608]
[1643538058630,0.25,95.708,95.624,0.608]
[1643538058854,0.25,95.708,95.625,0.25]
[1643538059232,0.25,95.708,95.624,0.608]
[1643538059632,0.25,95.708,95.624,0.858]
[1643538060433,0.25,95.708,95.624,0.608]
[1643538060632,43.853702,95.707,95.624,0.608]
[1643538060831,0.25,95.706,95.624,0.608]
[1643538061035,3.20669142,95.706,95.624,0.608]
[1643538061231,43.853702,95.705,95.614,0.608]
[1643538061431,12.54,95.69,95.614,0.608]
[1643538061632,39.15002416,95.689,95.614,0.608]
[1643538061831,39.40002416,95.689,95.614,0.608]
[1643538062232,39.40002416,95.689,95.614,0.858]
[1643538064243,39.40002416,95.689,95.614,0.608]
[1643538064438,104.4,95.688,95.614,0.608]
[1643538064839,0.25,95.687,95.614,0.608]
[1643538065441,15.695,95.68,95.614,0.608]
[1643538065639,12.54,95.67,95.614,0.608]
[1643538065940,0.25,95.669,95.579,2.04810006]
[1643538066145,0.25,95.669,95.589,6.0]
[1643538066767,0.25,95.669,95.59,0.25]
[1643538066968,0.25,95.673,95.59,104.65]
[1643538067170,0.25,95.689,95.59,104.65]
[1643538067370,0.25,95.689,95.6,6.0]
[1643538067769,39.67644192,95.689,95.601,0.25]
[1643538067968,39.67644192,95.689,95.601,6.25]
[1643538068174,39.67644192,95.689,95.605,6.0]
[1643538068472,39.67644192,95.689,95.611,6.0]
[1643538068870,39.42644192,95.689,95.612,0.25]
[1643538070774,0.25,95.688,95.612,0.25]
[1643538071382,12.54,95.69,95.612,0.25]
[1643538071576,12.54,95.71,95.622,104.4]
[1643538071777,12.54,95.73,95.623,0.25]
[1643538071976,12.54,95.73,95.633,104.4]
[1643538072377,42.19325031,95.729,95.643,6.0]
[1643538072880,0.25,95.728,95.644,0.25]
[1643538073278,0.25,95.728,95.644,104.65]
[1643538073578,42.19325031,95.729,95.655,104.4]
[1643538073879,42.19325031,95.729,95.656,0.25]
[1643538074077,42.19325031,95.729,95.665,6.0]
[1643538074279,42.19325031,95.729,95.666,0.25]
[1643538074980,77.7448,95.74,95.667,0.608]
[1643538075378,77.7448,95.74,95.676,6.0]
[1643538075779,77.7448,95.74,95.667,0.608]
[1643538075979,46.37375166,95.739,95.667,0.608]
[1643538076382,0.25,95.738,95.667,0.608]
[1643538077882,32.570649,95.737,95.667,0.608]
[1643538078083,32.570649,95.737,95.647,0.608]
[1643538078284,0.25,95.736,95.647,0.608]
[1643538078583,32.570649,95.735,95.647,0.608]
[1643538078885,12.54,95.72,95.647,0.858]
[1643538079083,78.40378008,95.719,95.647,0.858]
[1643538079283,46.08313108,95.719,95.647,0.858]
[1643538079683,46.08313108,95.719,95.647,0.608]
[1643538081886,104.4,95.718,95.647,0.608]
[1643538082085,104.4,95.718,95.637,0.858]
[1643538082286,0.25,95.717,95.637,0.858]
[1643538083188,0.25,95.717,95.646,6.0]
[1643538083390,0.25,95.718,95.646,6.0]
[1643538084291,0.25,95.718,95.647,0.25]
[1643538084690,0.25,95.718,95.638,1.44927453]
[1643538084890,14.252071,95.717,95.639,0.25]
[1643538085129,14.252071,95.717,95.647,0.608]
[1643538085291,0.25,95.716,95.647,0.608]
[1643538085692,14.252071,95.715,95.647,0.608]
[1643538085893,0.25,95.714,95.647,0.608]
[1643538086091,12.54,95.7,95.647,0.608]
[1643538086292,35.24655595,95.699,95.647,0.608]
[1643538087993,27.249904,95.698,95.647,0.608]
[1643538088199,59.750818,95.698,95.647,0.608]
[1643538088394,0.25,95.697,95.647,0.608]
[1643538088594,54.603481,95.697,95.647,0.608]
[1643538088794,27.097882,95.696,95.62,0.858]
[1643538089000,0.25,95.697,95.627,6.0]
[1643538089196,0.25,95.695,95.627,6.0]
[1643538089399,0.25,95.697,95.623,1.44927453]
[1643538089597,0.25,95.697,95.622,0.25]
[1643538090399,0.25,95.698,95.622,0.25]
[1643538090799,0.25,95.698,95.62,0.608]
[1643538091000,34.99655595,95.699,95.628,6.0]
[1643538091405,34.99655595,95.699,95.629,0.25]
[1643538092005,34.99655595,95.699,95.628,6.0]
[1643538092408,0.25,95.698,95.617,2.05727453]
[1643538092626,0.25,95.698,95.623,0.25]
[1643538093428,0.25,95.698,95.626,6.0]
[1643538094235,0.25,95.698,95.627,0.608]
[1643538094830,34.99655595,95.699,95.627,0.608]
[1643538095633,34.99655595,95.699,95.629,6.0]
[1643538095932,34.99655595,95.699,95.63,0.25]
[1643538096132,34.99655595,95.699,95.631,6.0]
[1643538096333,34.99655595,95.699,95.632,0.25]
[1643538096534,34.99655595,95.699,95.633,6.0]
[1643538097235,34.99655595,95.699,95.634,0.608]
[1643538097437,0.25,95.698,95.634,0.608]
[1643538098838,0.25,95.698,95.634,0.858]
[1643538099039,0.25,95.698,95.637,6.0]
[1643538099438,34.99655595,95.699,95.638,0.25]
[1643538099640,34.99655595,95.699,95.638,6.25]
[1643538100043,34.99655595,95.699,95.639,6.0]
[1643538100240,34.99655595,95.699,95.634,0.608]
[1643538100442,34.99655595,95.699,95.639,0.608]
[1643538100839,0.25,95.698,95.639,0.608]
[1643538103444,0.25,95.698,95.627,0.608]
[1643538104045,0.25,95.698,95.632,6.0]
[1643538104247,0.25,95.698,95.627,2.05727453]
[1643538104448,0.25,95.698,95.627,0.608]
[1643538104649,0.25,95.698,95.628,0.25]
[1643538105048,0.25,95.698,95.628,1.44927453]
[1643538105249,0.25,95.698,95.628,1.69927453]
[1643538105448,0.25,95.698,95.629,1.44927453]
[1643538105852,0.25,95.698,95.63,0.25]
[1643538106450,0.25,95.698,95.631,1.44927453]
[1643538106850,0.25,95.698,95.627,0.608]
[1643538106851,0.25,95.698,95.628,1.44927453]
[1643538107054,0.25,95.698,95.631,0.608]
[1643538107451,0.25,95.698,95.631,2.05727453]
[1643538108554,0.25,95.698,95.641,6.0]
[1643538108951,104.4,95.719,95.642,0.25]
[1643538109656,44.21431983,95.718,95.643,0.608]
[1643538110256,0.25,95.717,95.643,0.608]
[1643538110657,0.25,95.717,95.65,6.0]
[1643538110856,0.25,95.717,95.651,0.25]
[1643538111158,0.25,95.717,95.651,6.25]
[1643538111577,0.25,95.717,95.652,6.0]
[1643538111776,0.25,95.717,95.651,6.0]
[1643538112376,0.25,95.717,95.65,6.0]
[1643538112576,0.25,95.717,95.652,0.608]
[1643538112777,0.25,95.719,95.654,1.44927453]
[1643538113178,0.25,95.736,95.664,6.0]
[1643538113378,0.25,95.737,95.665,0.25]
[1643538113579,0.25,95.737,95.665,6.25]
[1643538113877,40.57420174,95.739,95.665,6.25]
[1643538114684,40.57420174,95.739,95.665,0.25]
[1643538114879,40.57420174,95.739,95.657,0.25]
[1643538115280,40.57420174,95.739,95.653,0.25]
[1643538115482,40.57420174,95.739,95.662,6.0]
[1643538115883,40.57420174,95.739,95.663,0.25]
[1643538116080,40.57420174,95.739,95.663,6.25]
[1643538117680,40.57420174,95.739,95.665,6.0]
[1643538117880,40.57420174,95.739,95.666,0.25]
[1643538118083,40.57420174,95.739,95.665,6.0]
[1643538118282,40.57420174,95.739,95.666,0.25]
[1643538118481,40.57420174,95.739,95.665,6.0]
[1643538118880,40.57420174,95.739,95.666,0.608]
[1643538121284,40.57420174,95.739,95.666,0.858]
[1643538122487,40.57420174,95.739,95.666,0.608]
[1643538122884,40.57420174,95.739,95.665,0.858]
[1643538123084,40.57420174,95.739,95.665,6.858]
[1643538123685,40.57420174,95.739,95.665,0.608]
[1643538124486,68.14324042,95.738,95.665,0.608]
[1643538124685,66.63754225,95.737,95.665,0.608]
[1643538124887,1.45099325,95.732,95.665,0.608]
[1643538125088,15.07,95.72,95.665,0.608]
[1643538125286,15.688,95.71,95.665,0.608]
[1643538125587,29.860934,95.709,95.665,0.608]
[1643538125786,30.110934,95.709,95.665,0.608]
[1643538125986,30.110934,95.709,95.628,1.44927453]
[1643538126188,0.25,95.709,95.641,0.608]
[1643538128488,0.25,95.709,95.641,0.858]
[1643538130692,0.25,95.709,95.641,0.608]
[1643538131091,30.758,95.71,95.641,0.858]
[1643538132693,0.25,95.709,95.641,0.858]
[1643538134097,0.25,95.709,95.65,6.0]
[1643538134295,0.25,95.709,95.651,0.25]
[1643538134497,0.25,95.709,95.651,0.858]
[1643538134695,0.25,95.709,95.651,6.858]
[1643538134896,0.25,95.709,95.651,0.858]
[1643538136697,46.22340787,95.719,95.651,0.858]
[1643538136698,0.25,95.718,95.651,0.858]
[1643538137098,0.25,95.718,95.651,6.858]
[1643538137300,0.25,95.718,95.652,0.25]
[1643538137497,0.25,95.718,95.661,6.0]
[1643538137898,0.25,95.718,95.662,0.25]